Cogmind - Beta 16 @@@ ROGUE MODE // 2025.12.31 @ 15:01:48 Player: skilledspacepolice Result: Core destroyed Performance ------------- Evolutions (1) 500 Regions Visited (5) 1000 Robots Destroyed (32) 160 Value Destroyed (1424) 1424 Prototype IDs (2) 40 Alien Tech Used (0) 0 Bonus (872) 872 TOTAL SCORE: 3996 Bonus ------- High Alert Combat Kills 133 Follower Combat Kills 39 Entered Garrisons 200 Used RIF Installer 500 Cogmind --------- Core Integrity 0/400 Matter 280/300 Energy 125/125 System Corruption 0% Temperature Cool (0) Movement Walking (190) Ox1 Location -9/Recycling Parts ------- > --- POWER (1) -------- Light Ion Engine > --- PROPULSION (4) --- Aluminum Leg Aluminum Leg > --- UTILITY (2) ------ Large Storage Unit > --- WEAPON (2) ------- Mini Grenade Launcher > --- INVENTORY (15) --- Light Treads Armored Wheel Armored Wheel Small Storage Unit Improved Targeting Computer Improved Targeting Computer Improved Targeting Computer Improved Targeting Computer Improved Targeting Computer Relay Coupler [Grunt] (23) Relay Coupler [Duelist] (24) Relay Coupler [Sentry] (22) Fusion Bomb Trap Peak State ------------ > --- POWER ------------ Light Ion Engine > --- PROPULSION ------- Aluminum Leg Flexi-carbon Leg Armored Wheel Armored Wheel > --- UTILITY ---------- Large Storage Unit Signal Interpreter > --- WEAPON ----------- Medium Laser Improved Light Cannon > --- INVENTORY -------- Light Treads Small Storage Unit Light Armor Plating Grenade Launcher Plasma Cutter Plasma Cutter Tiamat Bomb Trap Tiamat Bomb Trap Tiamat Bomb Trap Tiamat Bomb Trap Fusion Bomb Trap Fusion Bomb Trap Fusion Bomb Trap Fusion Bomb Trap [Rating: 17] Favorites ----------- Power Light Ion Engine Engine Light Ion Engine Propulsion Aluminum Leg Treads Light Treads Leg Aluminum Leg Wheel Armored Wheel Utility Large Storage Unit Storage Large Storage Unit Processor Signal Interpreter Protection Light Armor Plating Weapon Medium Laser Energy Gun Medium Laser Ballistic Cannon Improved Light Cannon Launcher Grenade Launcher Special Weapon Plasma Cutter Build | -11 -10 -9 -9 -9 -9 ------- Run | Yrd Mat Mat Sto Gar Rec Slots Evolved 2 | . . 2 . . . Power . | . . . . . . Propulsion 2 | . . 2 . . . Utility . | . . . . . . Weapon . | . . . . . . Parts Attached 28 | 6 2 1 1 15 3 Power 5 | 1 . . . 4 . Engine 5 | 1 . . . 4 . Core . | . . . . . . Reactor . | . . . . . . Propulsion 12 | 2 . 1 1 6 2 Treads 3 | 2 . . 1 . . Leg 7 | . . 1 . 4 2 Wheel 2 | . . . . 2 . Hover . | . . . . . . Flight . | . . . . . . Utility 4 | 1 2 . . 1 . Device . | . . . . . . Storage 2 | 1 1 . . . . Processor 1 | . 1 . . . . Hackware . | . . . . . . Protection 1 | . . . . 1 . Artifact . | . . . . . . Weapon 7 | 2 . . . 4 1 Energy Gun 2 | 2 . . . . . Energy Cannon . | . . . . . . Ballistic Gun . | . . . . . . Ballistic Cannon 1 | . . . . 1 . Launcher 2 | . . . . 1 1 Special Weapon 2 | . . . . 2 . Impact Weapon . | . . . . . . Slashing Weapon . | . . . . . . Piercing Weapon . | . . . . . . Special Melee Weapon . | . . . . . . Unidentified Prototypes . | . . . . . . Parts Lost 13 | . . . . 7 6 Power 2 | . . . . 2 . Propulsion 7 | . . . . 4 3 Utility 2 | . . . . 1 1 Weapon 2 | . . . . . 2 Highest Loss Streak 4 | . . . . 2 4 To Critical Strikes 1 | . . . . 1 . Average Backups 7 | 1 2 3 7 6 12 Power . | . 1 1 1 . . Propulsion 2 | . . . 2 1 3 Utility 3 | . . 1 1 2 9 Weapon . | . . 1 1 . . Tool/Special . | . . . . . . Unused Backups 9 | . . . . . 9 Power . | . . . . . . Propulsion 1 | . . . . . 1 Utility 8 | . . . . . 8 Weapon . | . . . . . . Tool/Special . | . . . . . . Average Slot Usage (%) 94 | . 98 78 92 96 93 Engine 10 | . 14 11 11 8 11 Treads 12 | . 28 19 26 11 . Leg 20 | . . 3 11 18 44 Wheel 6 | . . . . 13 . Storage 11 | . 14 11 11 11 11 Processor 5 | . 12 11 11 5 . Protection 4 | . . . . 5 6 Energy Gun 9 | . 28 22 22 6 . Ballistic Cannon 2 | . . . . 4 . Launcher 4 | . . . . 5 9 Special Weapon 5 | . . . . 5 10 Peak Build Rating 17 | 6 7 9 10 17 17 Average Rating 12 | 3 6 7 9 13 16 On Entrance 8 | . 6 7 9 10 16 Avg Prop Armor Cover (%) 7 | . . 6 5 7 . Naked Turns . | . . . . . . Heaviest Build 32 | 13 28 28 28 32 30 Greatest Support 60 | 40 40 40 60 60 53 Greatest Overweight (x) 9 | 1 . . . 9 1 Average Overweight (x) . | . . . . . . Largest Inventory Capacity 15 | 8 15 15 15 15 15 Average Capacity 14 | 7 9 15 15 15 15 Most Carried 15 | 6 4 7 8 15 15 Average Carried 10 | 1 2 3 7 11 14 Final Capacity 15 | 8 15 15 15 15 15 Final Carried 15 | 1 4 7 8 15 13 Class Distribution -------------------- 61% | Mutant 38% | Scavenger-Mutant Dominant Class ---------------- Mutant | -10/Materials Mutant | -9/Materials Mutant | -9/Storage Mutant | -9/Garrison Scavenger-Mutant | -9/Recycling Resources | -11 -10 -9 -9 -9 -9 ----------- Run | Yrd Mat Mat Sto Gar Rec Matter Collected 754 | 215 65 . 30 338 106 Remotely . | . . . . . . Salvage Created 787 | . 30 54 143 416 144 Parts 68 | . 1 2 15 39 11 Haulers Intercepted . | . . . . . . Recyclers Shooed . | . . . . . . Parts Field Recycled . | . . . . . . Retrieved Matter . | . . . . . . Parts Self-Destructed . | . . . . . . Prevented . | . . . . . . Parts Restored . | . . . . . . Kills | -11 -10 -9 -9 -9 -9 ------- Run | Yrd Mat Mat Sto Gar Rec Combat Hostiles Destroyed 32 | . 1 1 7 20 3 Guns 16 | . 1 1 7 7 . Cannons 7 | . . . . 5 2 AOE 9 | . . . . 8 1 Classes Destroyed 6 | . 1 1 1 . 3 Swarmer 16 | . . . 6 10 . Grunt 8 | . 1 . . 7 . Protector 1 | . . . . . 1 Sentry 5 | . . 1 1 3 . Programmer 1 | . . . . . 1 Scrapper 1 | . . . . . 1 Best Kill Streak 5 | . 1 1 5 5 2 Combat Bots Only 5 | . 1 1 5 5 2 Max Kills in Single Turn 3 | . 1 1 1 3 1 Gunslinging . | . . . . . . Exploded 3 | . . . . 3 1 Melee . | . . . . . . Uniques/NPCs Destroyed . | . . . . . . Combat | -11 -10 -9 -9 -9 -9 -------- Run | Yrd Mat Mat Sto Gar Rec Hostile Shots Fired 173 | . 8 2 37 100 26 Missed 39 | . 1 . 8 26 4 Hits 134 | . 7 2 29 74 22 Projectile 134 | . 7 2 29 74 22 Critical Strikes 6 | . . . 3 1 2 Damage Taken 2089 | . 78 32 305 1122 552 Core 431 | . 21 17 60 210 123 Absorbed by Shields 9 | . . . . 9 . Regen/Repaired (Parts) 38 | . . 38 . . . Core Remaining (%) 95 | 100 91 . . . . Volleys Fired 97 | . 7 2 15 64 9 Largest 2 | . 2 2 2 2 1 Hottest 90 | . 90 90 90 90 30 Shots Fired 170 | . 14 4 30 113 9 Gun 103 | . 14 4 30 55 . Cannon 41 | . . . . 41 . Launcher 17 | . . . . 15 2 Special 9 | . . . . 2 7 Kinetic 41 | . . . . 41 . Thermal 112 | . 14 4 30 57 7 Explosive 17 | . . . . 15 2 Electromagnetic . | . . . . . . Robot Hit Streak 13 | . 5 3 11 13 4 Robot Miss Streak 3 | . 2 2 3 3 3 Penetration Max . | . . . . . . Secondary Targets 3 | . . . 1 2 . Max Gunslinging Chain 1 | . . . 1 1 . Shots Hit Robots 77 | . 8 3 19 42 5 Core Hits 49 | . 3 2 8 32 4 Critical Kills . | . . . . . . Critical Parts Destroyed . | . . . . . . Critical Strikes 2 | . 1 . . 1 . Burn 2 | . 1 . . 1 . Melee Attacks . | . . . . . . Impact . | . . . . . . Slashing . | . . . . . . Piercing . | . . . . . . Sneak Attacks . | . . . . . . Combat Hostiles . | . . . . . . Follow-up Attacks . | . . . . . . Damage Inflicted 1516 | . 97 35 223 1012 149 Guns 661 | . 97 35 223 306 . Cannons 248 | . . . . 248 . Explosions 549 | . . . . 447 102 Melee . | . . . . . . Ramming . | . . . . . . Kinetic 248 | . . . . 248 . Thermal 719 | . 97 35 223 317 47 Explosive 549 | . . . . 447 102 Electromagnetic . | . . . . . . Impact . | . . . . . . Slashing . | . . . . . . Piercing . | . . . . . . Highest Corruption . | . . . . . . Average Corruption . | . . . . . . Corruption Purged . | . . . . . . Corruption Blocked . | . . . . . . Overload Shots . | . . . . . . Overflow Damage 52 | . . . . 10 42 Projectiles . | . . . . . . Explosions 52 | . . . . 10 42 Melee . | . . . . . . Knockbacks 1 | . . . . 1 . Impact . | . . . . . . Kinetic 1 | . . . . 1 . Secondary . | . . . . . . Self-Inflicted Damage 191 | . . . . 98 93 Shots 6 | . . . . 4 2 Rammed . | . . . . . . Targets Rammed . | . . . . . . Kicked . | . . . . . . Crushed . | . . . . . . Highest Temperature 216 | . 216 51 210 174 29 Average Temperature 64 | . 99 28 80 51 13 Received Heat Transfer 572 | . 42 9 87 204 230 Siege Activations . | . . . . . . Martial Activations . | . . . . . . Shielding Activations . | . . . . . . Robots Disrupted . | . . . . . . Combat Hostiles . | . . . . . . Robots Corrupted . | . . . . . . Combat Hostiles . | . . . . . . Parts Fried . | . . . . . . Impact Corruptions . | . . . . . . Robots Melted . | . . . . . . Combat Hostiles . | . . . . . . Parts Melted . | . . . . . . Heat Transferred 1977 | . 334 87 595 840 121 Parts Sabotaged . | . . . . . . Parts Stolen . | . . . . . . Parts Stripped . | . . . . . . Power Chain Reactions . | . . . . . . Alert | -11 -10 -9 -9 -9 -9 ------- Run | Yrd Mat Mat Sto Gar Rec Maximum Alert Level 3 | . . . 1 3 2 Low Security (%) 31 | 100 100 100 74 5 23 Level 1 32 | . . . 25 29 63 Level 2 21 | . . . . 36 13 Level 3 14 | . . . . 28 . Level 4 . | . . . . . . Level 5 . | . . . . . . High Security . | . . . . . . Max Security . | . . . . . . Peak Influence 987 | . 20 33 221 987 444 Initial 444 | . . . . 113 444 Average 363 | . 1 8 116 557 281 Influence Increases 1337 | . 20 33 285 964 35 Destroy 0b10 Robot/C 660 | . 20 20 140 460 20 Destroy 0b10 Robot/NC 10 | . . . . 5 5 Destroy Leader 60 | . . 10 30 20 . Allied During Kill 7 | . . . . 7 . Trap Triggered on 0b10 30 | . . . . 30 . Successful Hack 64 | . . 3 9 42 10 Disable Machine 30 | . . . . 30 . Anti-Garrison Action 300 | . . . . 300 . Destroy Structure 71 | . . . 1 70 . Partial Spotted 15 | . . . 15 . . Lose Combat Pursuer 90 | . . . 90 . . Influence Decreases 1244 | . 20 33 110 152 929 Entered New Map 605 | . . . . 62 543 Time Decay 489 | . 20 33 110 . 326 Lost Part 130 | . . . . 70 60 Lost Ally 20 | . . . . 20 . Squads Dispatched 2 | . 1 . 1 . . Investigation . | . . . . . . Extermination . | . . . . . . Reinforcement 1 | . 1 . . . . Assault . | . . . . . . Garrison 1 | . . . 1 . . Intercept . | . . . . . . Searches Triggered . | . . . . . . Construction Impeded . | . . . . . . Haulers Reinforced . | . . . . . . Active Scanning Responses . | . . . . . . Cargo Convoy Interrupts . | . . . . . . Stealth | -11 -10 -9 -9 -9 -9 --------- Run | Yrd Mat Mat Sto Gar Rec Distress Signals . | . . . . . . Communications Jammed . | . . . . . . Distress Signals . | . . . . . . Times Spotted 54 | . 4 1 16 26 7 Peak Tracking Total 7 | . 4 1 7 6 3 Tactical Retreats 2 | . . . 2 . . Traps | -11 -10 -9 -9 -9 -9 ------- Run | Yrd Mat Mat Sto Gar Rec Traps Triggered 10 | . . . . 10 . Indirectly . | . . . . . . Trap Hack Attempts . | . . . . . . Triggered . | . . . . . . Disarmed . | . . . . . . Reprogrammed . | . . . . . . Reused 4 | . . . . 3 1 Traps Extracted . | . . . . . . Installed 4 | . . . . 3 1 Triggered 3 | . . . . 3 . Most Traps Carried 8 | . . . . 8 2 Machines | -11 -10 -9 -9 -9 -9 ---------- Run | Yrd Mat Mat Sto Gar Rec Machines Disabled 6 | . . . . 6 . Max in Single Turn 1 | . . . . 1 . Garrison Relay 2 | . . . . 2 . Phase Generator 1 | . . . . 1 . Machines Repaired . | . . . . . . Machines Dismantled 3 | . . . . 3 . Machines Sabotaged . | . . . . . . Overloaded Fab Kills . | . . . . . . Hacking | -11 -10 -9 -9 -9 -9 --------- Run | Yrd Mat Mat Sto Gar Rec Machines Accessed 20 | . 2 1 3 5 9 Terminals 14 | . 2 . 2 5 5 Fabricators . | . . . . . . Repair Stations 1 | . . 1 . . . Recycling Units 2 | . . . . . 2 Scanalyzers . | . . . . . . Garrison Access 1 | . . . 1 . . Total Hacks 60 | . 3 3 7 6 41 Successful 45 | . 1 2 4 5 33 Failed 15 | . 2 1 3 1 8 Catastrophic 2 | . . . . 1 1 Database Lockouts . | . . . . . . Manual . | . . . . . . Terminals 26 | . 3 . 6 6 11 Fabricators . | . . . . . . Repair Stations 3 | . . 3 . . . Recycling Units 4 | . . . . . 4 Scanalyzers . | . . . . . . Garrison Access 1 | . . . 1 . . Terminal Hacks 41 | . 1 . 3 5 32 Record 24 | . . . . . 24 Robot Analysis 1 | . . . . . 1 Prototype ID Bank 1 | . . . 1 . . Open Door 1 | . . . . 1 . Emergency Access Points 2 | . 1 . . 1 . Terminal Index 1 | . . . . . 1 Alert Level 2 | . . . . . 2 Locate Traps 1 | . . . 1 . . Investigation Status 2 | . . . 1 . 1 Zone Layout 1 | . . . . . 1 Garrison Registry 1 | . . . . 1 . Patrol Navigation 1 | . . . . 1 . Security Stations 1 | . . . . 1 . Release Object 2 | . . . . . 2 Fabricator Hacks . | . . . . . . Repair Station Hacks 2 | . . 2 . . . Scan Component 1 | . . 1 . . . Repair 1 | . . 1 . . . Recycling Unit Hacks 1 | . . . . . 1 Retrieve Components 1 | . . . . . 1 Scanalyzer . | . . . . . . Garrison Access Hacks 1 | . . . 1 . . Unlock Access 1 | . . . 1 . . Unauthorized Hacks . | . . . . . . Terminals . | . . . . . . Fabricators . | . . . . . . Repair Stations . | . . . . . . Recycling Units . | . . . . . . Scanalyzers . | . . . . . . Garrison Access . | . . . . . . Data Cores Recovered . | . . . . . . Used . | . . . . . . Hacking Detections 12 | . 2 . 2 3 5 Full Trace Events 1 | . . . . 1 . Feedback Events . | . . . . . . Feedback Blocked . | . . . . . . Robot Schematics Acquired . | . . . . . . Robots Built . | . . . . . . Authchips . | . . . . . . Time . | . . . . . . Total Robot Build Rating . | . . . . . . Part Schematics Acquired . | . . . . . . Parts Built . | . . . . . . Authchips . | . . . . . . Time . | . . . . . . Total Part Build Rating . | . . . . . . Part Studies Acquired . | . . . . . . Parts Repaired 1 | . . 1 . . . Time 26 | . . 26 . . . Parts Recycled . | . . . . . . Recycled Matter . | . . . . . . Retrieved Matter . | . . . . . . Retrieved Components 2 | . . . . . 2 Parts Scanalyzed . | . . . . . . Part Schematics Acquired . | . . . . . . Parts Damaged . | . . . . . . Bothacking | -11 -10 -9 -9 -9 -9 ------------ Run | Yrd Mat Mat Sto Gar Rec Used RIF Installer 1 | . . . . 1 . Robots Hacked . | . . . . . . Non-combat . | . . . . . . Combat . | . . . . . . Robot Hacks Applied . | . . . . . . Relay Couplers Released 7 | . . . . 7 . Machine Destruction 7 | . . . . 7 . Fabnet Peak Effective % . | . . . . . . Robots Rewired . | . . . . . . Allies Hacked . | . . . . . . Hacks Repelled . | . . . . . . Allies | -11 -10 -9 -9 -9 -9 -------- Run | Yrd Mat Mat Sto Gar Rec Total Allies 1 | . . . . 1 . Largest Group 1 | . . . . 1 . Highest-Rated Group 39 | . . . . 39 . Highest-Rated Ally 39 | . . . . 39 . Total Orders . | . . . . . . Ally Attacks 14 | . . . . 14 . Total Damage 150 | . . . . 150 . Kills 3 | . . . . 3 . Allies Corrupted . | . . . . . . Allies Melted . | . . . . . . Intel | -11 -10 -9 -9 -9 -9 ------- Run | Yrd Mat Mat Sto Gar Rec Active Infowar (turns) . | . . . . . . Robot Analysis Total 1 | . . . . . 1 Derelict Logs Recovered . | . . . . . . Drone Launches . | . . . . . . Drone Recoveries . | . . . . . . Exploration | -11 -10 -9 -9 -9 -9 ------------- Run | Yrd Mat Mat Sto Gar Rec Turns Passed 3244 | 45 306 149 345 1671 728 Spaces Moved 1994 | 32 170 64 181 972 575 Core 18 | 17 . . . 1 . Treads 841 | 15 170 64 181 411 . Legs 1130 | . . . . 555 575 Wheels 5 | . . . . 5 . Hover . | . . . . . . Flight . | . . . . . . Fastest Speed 50 | 50 160 160 160 105 120 Average Speed 136 | 104 160 160 160 137 120 Slowest Speed 500 | 160 160 160 160 500 190 Overloaded Moves . | . . . . . . Propulsion Burnouts . | . . . . . . Robots Hopped . | . . . . . . Potential Cave-ins . | . . . . . . Cave-ins Triggered . | . . . . . . Exploration Rate (%) 44 | 4 32 10 36 96 91 Regions Visited 5 Branch Regions 2 Pre-discovered Areas . | . . . . . . Known Exits Taken 3 | . 1 1 1 . . Unknown Exits Taken 1 | 1 . . . . . Scrap Searched . | . . . . . . Spaces Dug 2 | . . . . 2 . Terrain Destroyed 52 | . . . . 52 . Melee . | . . . . . . Projectile . | . . . . . . AOE 52 | . . . . 52 . Terrain Rammed . | . . . . . . Walls Destroyed . | . . . . . . Machines Disabled . | . . . . . . Actions | -11 -10 -9 -9 -9 -9 --------- Run | Yrd Mat Mat Sto Gar Rec Total 2282 | 43 190 107 206 1143 593 Wait 58 | . 8 35 7 7 1 Move 1990 | 31 169 63 181 971 575 Hop . | . . . . . . Pick Up 42 | 6 4 5 2 25 . Fast Attach 4 | 1 . . . 1 2 Attach 22 | 5 1 2 1 12 1 Detach 2 | . . . . 2 . Swap 3 | . 1 . . 2 . Drop 14 | . . . . 12 2 Fire 97 | . 7 2 15 64 9 Melee . | . . . . . . Ram . | . . . . . . Kick . | . . . . . . Crush . | . . . . . . Escape Stasis 16 | . . . . 16 . Rewire . | . . . . . . Trap 4 | . . . . 3 1 Miscellaneous 30 | . . . . 28 2 Route ------- -11/Scrapyard -10/Materials -9/Materials -9/Storage -9/Garrison (discovered 3 exits: *Rec x3) -9/Recycling History --------- Turn | Location | Event 5 | -11/Scrapyard | Discovered new exit (range 15) 46 | -11/Scrapyard | Entered Materials 303 | -10/Materials | Discovered new exit (range 16) 305 | -10/Materials | Build established: Mutant 351 | -10/Materials | Identified exit to Materials 352 | -10/Materials | Entered another Materials area 352 | -9/Materials | Evolved 2 slots: Propulsion x2 452 | -9/Materials | Repaired Lgt. Treads 470 | -9/Materials | Discovered new exit (range 6) 476 | -9/Materials | Identified exit to Storage 501 | -9/Materials | Entered Storage 746 | -9/Storage | Garrison activated, responded to threat 846 | -9/Storage | Identified exit to Garrison 846 | -9/Storage | Entered Garrison 864 | -9/Garrison | Triggered checkpoint 904 | -9/Garrison | Triggered checkpoint 946 | -9/Garrison | Garrison Relay disabled 1037 | -9/Garrison | Rescued a captive Derelict 1114 | -9/Garrison | Triggered checkpoint 1161 | -9/Garrison | Triggered checkpoint 1324 | -9/Garrison | Discovered new exit (range 10) 1337 | -9/Garrison | Identified exit to Recycling 1406 | -9/Garrison | Triggered checkpoint 1420 | -9/Garrison | Triggered checkpoint 1636 | -9/Garrison | Triggered checkpoint 1730 | -9/Garrison | Core integrity fell below 50% 1796 | -9/Garrison | Phase Generator disabled 1873 | -9/Garrison | Garrison Relay disabled 1889 | -9/Garrison | Discovered exit to Recycling (range 11) 2034 | -9/Garrison | Triggered checkpoint 2139 | -9/Garrison | Discovered exit to Recycling (range 10) 2206 | -9/Garrison | Learned Recycling security intel 2253 | -9/Garrison | Discovered exit to Recycling (range 42) 2253 | -9/Garrison | Discovered exit to Recycling (range 72) 2253 | -9/Garrison | Discovered exit to Recycling (range 30) 2279 | -9/Garrison | Build established: Scavenger-Mutant 2316 | -9/Garrison | Triggered checkpoint 2374 | -9/Garrison | Installed Relay Interface Framework 2517 | -9/Garrison | Entered Recycling 2518 | -9/Recycling | Met a Zionite searching for Scraptown 2518 | -9/Recycling | Joined Warlord attack on 0b10 via Recycling 3175 | -9/Recycling | Scanned before Scraplab entrance 3193 | -9/Recycling | Entered Scraplab 3209 | -9/Recycling | Discovered new exit (range 3) 3221 | -9/Recycling | Angered Scraplab inhabitants 3241 | -9/Recycling | Core integrity fell below 20% 3245 | -9/Recycling | Core destroyed Last Messages --------------- URGENT: Link to external system right away! Critical hit (Burn: +50). 4G-U51(j): "Defend the Scraplab!" Scraplab SEP disabled. LV-CM9(j) heat spikes uncontrollably. K0-3PY(c) destroyed. Dropped Fusion Bomb Trap. Prototype Device integrity failing. Installed Fusion Bomb Trap. Plasma Cutter destroyed. Flexi-carbon Leg destroyed. Critical hit (Burn: +50). [Achievement: Let's See Who's Tougher] 4G-U51(j) heat short circuits Scrap Suit. 4G-U51(j) destroyed. Imp. Aluminum Leg destroyed. Destroyed Imp. Aluminum Leg. Aluminum Leg destroyed. Destroyed Aluminum Leg. Broken Scrap Suit violently self-destructs. Map ----- +----------------------------------------------------+ | | | | | | | | | | | | | | | | | | | | | | | | | | | | | | | | | | | | | | | | | | | | | | | | | ???????????????############??????????????????????? | | ???????????????#"""""""#=@#??????????????????????? | | ???????????????# " " ##%#??????????????????????? | | ?????????####### ! [!#??????????????????????? | | ????????## + ^ #??????????????????????? | | ????????# ##### = #??????????????????????? | | ????????## #???# *%= #??????????????????????? | | ?????????# #???#"& "&! "#??????????????????????? | | ?????????# #???#"""""" #??????????????????????? | | ??????#####################??????????????????????? | | ??????# #??????????????????????????????????? | | ??????# #??????????????????????????????????? | | #####?# #??????????????????????????????????? | | #?# #??????????????????????????????????? | | #?####+####??????????????????????????????????? | | #????# #???????###???????????????????????????? | | #????# ######### #???????????????????????????? | | #???## ## #???????????????????????????? | | #???# # #???????????????????????????? | | #???# + #???????????????????????????? | | #???# # #???????????????????????????? | | #???# ### #???????????????????????????? | | #???# #?# #???????????????????????????? | | #???# #?# #???????????????????????????? | | /######## #?# #???????????????????????????? | | #?# #???????????????????????????? | +----------------------------------------------------+ Best States ------------- Heat Dissipation 28 Energy Generation 10 Energy Capacity 250 Matter Stores 300 Matter Capacity 300 Sight Range 16 Terrain Scan Density 10 Armor Coverage 150 Evasion (%) 55 Recoil Reduction 3 Item Schematics ----------------- None Robot Schematics ------------------ None Fabricated ------------ Nothing Repaired ---------- Lgt. Treads | 72% | -9/Materials Studied --------- None Alien Tech Used ----------------- None Achievements -------------- Join The Dark Side Let's See Who's Tougher You May Approach The Wall Challenges ------------ None Game ------ Seed DisposableDecoyFrame Manual? 0 Play Time 00:36:53 Cumulative 19.7 hours Start 2025.12.31 @ 14:22:49 End 2025.12.31 @ 15:01:48 Sessions 1 Manual Loads 0 Difficulty Rogue Special Mode None Game No. 28 Rogue 28 Adventurer 0 Explorer 0 Win Type - Total 0 Types 0/0/0/0/0/0/0/0/0/0 Lore% 29 Gallery% 20 Achievement% 15 Wizard Run 0 Options --------- Layout 1 ASCII 0 Keyboard 0 Movement Mouse Keybinds 0 Fullscreen 1 Font 24/Smallcaps Map View 50x35 Zoom Use 0% Tactical HUD 0 Map Filters NONE Filters NONE Steam 1 RUN: bb428417-209b-400e-8827-6e37faed2cd8